{"text_format":"1","workbook":"xlsx","n_sheets":5,"sheets":["Debit transactions","Lookup","Sheet3","Sheet2","Sheet1"],"not_rendered":{"charts":0,"images":0,"macros":0,"external_links":0,"defined_names":1,"comments":0,"pivot_tables":0},"unopened":[],"bounds":{"document_bytes":16777216,"sheet_cells":100000,"rows_first":2000,"rows_last":500,"rows_between":2000,"halvings":0,"cell_chars":16384,"cell_head_chars":4096},"cells_cut":0,"cells_raw":0,"read":"whole","date_system":"1900"}

{"sheet":"Debit transactions","index":0,"n_rows":81,"n_cols":9,"rows_kept":81,"cut":false,"hidden":false,"merged":[]}
["Date","Description","Amount","Running Bal.","Who","Bill to","Expense Report?","Invoiced?","Charge Receipt"]
["2022-01-01","Beginning balance as of 01/01/2022",null,663.71,{"$f":"IFERROR(INDEX(Lookup!$B$2:$C$5,MATCH(RIGHT(TRIM(Table1[[#This Row],[Description]]),4),Lookup!$B$2:$B$5,0),2),\"\")","v":""}]
["2022-01-03","OWL FOR THUNDERBI 01/02 PURCHASE WIESBADEN DEBIT CARD *7429",-11.38,{"$f":"D2+Table1[[#This Row],[Amount]]","v":652.33000000000004},{"$f":"IFERROR(INDEX(Lookup!$B$2:$C$5,MATCH(RIGHT(TRIM(Table1[[#This Row],[Description]]),4),Lookup!$B$2:$B$5,0),2),\"\")","v":"FWC"}]
["2022-01-03","Monthly Fee Business Adv Relationship",-29.95,{"$f":"D3+Table1[[#This Row],[Amount]]","v":622.38},{"$f":"IFERROR(INDEX(Lookup!$B$2:$C$5,MATCH(RIGHT(TRIM(Table1[[#This Row],[Description]]),4),Lookup!$B$2:$B$5,0),2),\"\")","v":""},"AGG"]
["2022-01-03","INTERNATIONAL TRANSACTION FEE 01/02 OWL FOR THUNDERBI WIESBADEN DEBIT CARD *7429",-0.34,{"$f":"D4+Table1[[#This Row],[Amount]]","v":622.04},{"$f":"IFERROR(INDEX(Lookup!$B$2:$C$5,MATCH(RIGHT(TRIM(Table1[[#This Row],[Description]]),4),Lookup!$B$2:$B$5,0),2),\"\")","v":"FWC"},null,null,null,{"$f":"TEXT(Table1[[#This Row],[Date]],\"YYMMDD\")&\" - Intl Transaction Fee - \"&LEFT(RIGHT(Table1[[#This Row],[Description]],LEN(Table1[[#This Row],[Description]])-LEN(\"international transaction fee xx/xx \")),SEARCH(\"DEBIT\",RIGHT(Table1[[#This Row],[Description]],LEN(Table1[[#This Row],[Description]])-LEN(\"international transaction fee xx/xx xx\"))))&\".pdf\"","v":"220103 - Intl Transaction Fee - OWL FOR THUNDERBI WIESBADEN.pdf"}]
["2022-01-19","MAILCHIMP *MISC 01/18 PURCHASE MAILCHIMP.COM GA DEBIT CARD *7411",-9.49,{"$f":"D5+Table1[[#This Row],[Amount]]","v":612.54999999999995},{"$f":"IFERROR(INDEX(Lookup!$B$2:$C$5,MATCH(RIGHT(TRIM(Table1[[#This Row],[Description]]),4),Lookup!$B$2:$B$5,0),2),\"\")","v":"LRC"},"AGG",true,null,"220118 - AGG - Mailchimp Essentials MC14760854.pdf"]
["2022-01-20","MailChimp 01/20 PURCHASE Atlanta GA DEBIT CARD *7411",-47.69,{"$f":"D6+Table1[[#This Row],[Amount]]","v":564.8599999999999},{"$f":"IFERROR(INDEX(Lookup!$B$2:$C$5,MATCH(RIGHT(TRIM(Table1[[#This Row],[Description]]),4),Lookup!$B$2:$B$5,0),2),\"\")","v":"LRC"},"Peregrine",true,true,"220120 - Peregrine - Mailchimp Essentials MC14777938.pdf"]
["2022-01-24","PEREGRINE AVIONI DES:QUICKBOOKS ID:375020979 INDN:AVIAGLOBAL GROUP, LLC CO ID:1722616653 PPD",1500,{"$f":"D7+Table1[[#This Row],[Amount]]","v":2064.8599999999997},{"$f":"IFERROR(INDEX(Lookup!$B$2:$C$5,MATCH(RIGHT(TRIM(Table1[[#This Row],[Description]]),4),Lookup!$B$2:$B$5,0),2),\"\")","v":""}]
["2022-01-24","SOFTACULOUS 01/24 PURCHASE ABU DHABI DEBIT CARD *7429",-24,{"$f":"D8+Table1[[#This Row],[Amount]]","v":2040.8599999999997},{"$f":"IFERROR(INDEX(Lookup!$B$2:$C$5,MATCH(RIGHT(TRIM(Table1[[#This Row],[Description]]),4),Lookup!$B$2:$B$5,0),2),\"\")","v":"FWC"},null,null,null,"220124 - Softaculous Loginizer 783150.pdf"]
["2022-01-24","ELEMENTOR 01/24 PURCHASE WILMINGTON DE DEBIT CARD *7429",-49,{"$f":"D9+Table1[[#This Row],[Amount]]","v":1991.8599999999997},{"$f":"IFERROR(INDEX(Lookup!$B$2:$C$5,MATCH(RIGHT(TRIM(Table1[[#This Row],[Description]]),4),Lookup!$B$2:$B$5,0),2),\"\")","v":"FWC"},null,null,null,"220124 - Elementor Pro.pdf"]
["2022-01-24","INTERNATIONAL TRANSACTION FEE 01/24 SOFTACULOUS ABU DHABI DEBIT CARD *7429",-0.72,{"$f":"D10+Table1[[#This Row],[Amount]]","v":1991.1399999999996},{"$f":"IFERROR(INDEX(Lookup!$B$2:$C$5,MATCH(RIGHT(TRIM(Table1[[#This Row],[Description]]),4),Lookup!$B$2:$B$5,0),2),\"\")","v":"FWC"},null,null,null,{"$f":"TEXT(Table1[[#This Row],[Date]],\"YYMMDD\")&\" - Intl Transaction Fee - \"&LEFT(RIGHT(Table1[[#This Row],[Description]],LEN(Table1[[#This Row],[Description]])-LEN(\"international transaction fee xx/xx \")),SEARCH(\"DEBIT\",RIGHT(Table1[[#This Row],[Description]],LEN(Table1[[#This Row],[Description]])-LEN(\"international transaction fee xx/xx xx\"))))&\".pdf\"","v":"220124 - Intl Transaction Fee - SOFTACULOUS ABU DHABI.pdf"}]
["2022-01-25","REALLY-SIMPLE-SSL 01/24 PURCHASE GRONINGEN DEBIT CARD *7429",-23.2,{"$f":"D11+Table1[[#This Row],[Amount]]","v":1967.9399999999996},{"$f":"IFERROR(INDEX(Lookup!$B$2:$C$5,MATCH(RIGHT(TRIM(Table1[[#This Row],[Description]]),4),Lookup!$B$2:$B$5,0),2),\"\")","v":"FWC"},null,null,null,"220124 - Really Simple SSL 2022-1993.pdf"]
["2022-01-25","COMPLIANZ-GDPR-PR 01/25 PURCHASE GRONINGEN DEBIT CARD *7429",-45,{"$f":"D12+Table1[[#This Row],[Amount]]","v":1922.9399999999996},{"$f":"IFERROR(INDEX(Lookup!$B$2:$C$5,MATCH(RIGHT(TRIM(Table1[[#This Row],[Description]]),4),Lookup!$B$2:$B$5,0),2),\"\")","v":"FWC"},null,null,null,"220125 - Complianz 2022-0745.pdf"]
["2022-01-25","INTERNATIONAL TRANSACTION FEE 01/25 COMPLIANZ-GDPR-PR GRONINGEN DEBIT CARD *7429",-1.35,{"$f":"D13+Table1[[#This Row],[Amount]]","v":1921.5899999999997},{"$f":"IFERROR(INDEX(Lookup!$B$2:$C$5,MATCH(RIGHT(TRIM(Table1[[#This Row],[Description]]),4),Lookup!$B$2:$B$5,0),2),\"\")","v":"FWC"},null,null,null,{"$f":"TEXT(Table1[[#This Row],[Date]],\"YYMMDD\")&\" - Intl Transaction Fee - \"&LEFT(RIGHT(Table1[[#This Row],[Description]],LEN(Table1[[#This Row],[Description]])-LEN(\"international transaction fee xx/xx \")),SEARCH(\"DEBIT\",RIGHT(Table1[[#This Row],[Description]],LEN(Table1[[#This Row],[Description]])-LEN(\"international transaction fee xx/xx xx\"))))&\".pdf\"","v":"220125 - Intl Transaction Fee - COMPLIANZ-GDPR-PR GRONINGEN.pdf"}]
["2022-01-25","INTERNATIONAL TRANSACTION FEE 01/24 REALLY-SIMPLE-SSL GRONINGEN DEBIT CARD *7429",-0.7,{"$f":"D14+Table1[[#This Row],[Amount]]","v":1920.8899999999996},{"$f":"IFERROR(INDEX(Lookup!$B$2:$C$5,MATCH(RIGHT(TRIM(Table1[[#This Row],[Description]]),4),Lookup!$B$2:$B$5,0),2),\"\")","v":"FWC"},null,null,null,{"$f":"TEXT(Table1[[#This Row],[Date]],\"YYMMDD\")&\" - Intl Transaction Fee - \"&LEFT(RIGHT(Table1[[#This Row],[Description]],LEN(Table1[[#This Row],[Description]])-LEN(\"international transaction fee xx/xx \")),SEARCH(\"DEBIT\",RIGHT(Table1[[#This Row],[Description]],LEN(Table1[[#This Row],[Description]])-LEN(\"international transaction fee xx/xx xx\"))))&\".pdf\"","v":"220125 - Intl Transaction Fee - REALLY-SIMPLE-SSL GRONINGEN.pdf"}]
["2022-01-26","BLS*Single Card 01/25 PURCHASE 972547584908 DEBIT CARD *7411",-6.99,{"$f":"D15+Table1[[#This Row],[Amount]]","v":1913.8999999999996},{"$f":"IFERROR(INDEX(Lookup!$B$2:$C$5,MATCH(RIGHT(TRIM(Table1[[#This Row],[Description]]),4),Lookup!$B$2:$B$5,0),2),\"\")","v":"LRC"},"AGG",true,null,"220125 - Clear Coast Greetings Island 341592115.pdf"]
["2022-01-26","INTERNATIONAL TRANSACTION FEE 01/25 BLS*Single Card 972547584908 DEBIT CARD *7411",-0.21,{"$f":"D16+Table1[[#This Row],[Amount]]","v":1913.6899999999996},{"$f":"IFERROR(INDEX(Lookup!$B$2:$C$5,MATCH(RIGHT(TRIM(Table1[[#This Row],[Description]]),4),Lookup!$B$2:$B$5,0),2),\"\")","v":"LRC"},"AGG",true,null,"220125 - Clear Coast Greetings Island 341592115.pdf"]
["2022-02-01","Monthly Fee Business Adv Relationship",-29.95,{"$f":"D17+Table1[[#This Row],[Amount]]","v":1883.7399999999996},{"$f":"IFERROR(INDEX(Lookup!$B$2:$C$5,MATCH(RIGHT(TRIM(Table1[[#This Row],[Description]]),4),Lookup!$B$2:$B$5,0),2),\"\")","v":""},"AGG"]
["2022-02-07","INMOTIONHOSTING.C 02/06 PURCHASE 888-3214678 CA DEBIT CARD *7429",-37.18,{"$f":"D18+Table1[[#This Row],[Amount]]","v":1846.5599999999995},{"$f":"IFERROR(INDEX(Lookup!$B$2:$C$5,MATCH(RIGHT(TRIM(Table1[[#This Row],[Description]]),4),Lookup!$B$2:$B$5,0),2),\"\")","v":"FWC"}]
["2022-02-14","JET NET 02/10 PURCHASE 315-797-4420 NY DEBIT CARD *7411",-850,{"$f":"D19+Table1[[#This Row],[Amount]]","v":996.55999999999949},{"$f":"IFERROR(INDEX(Lookup!$B$2:$C$5,MATCH(RIGHT(TRIM(Table1[[#This Row],[Description]]),4),Lookup!$B$2:$B$5,0),2),\"\")","v":"LRC"},"Peregrine",true,true,"Executed Custom Special Report Project Agreement AviaGlobal Group LLC[84].pdf"]
["2022-02-18","PEREGRINE AVIONI DES:QUICKBOOKS ID:375020979 INDN:AVIAGLOBAL GROUP, LLC CO ID:1722616653 PPD",1500,{"$f":"D20+Table1[[#This Row],[Amount]]","v":2496.5599999999995},{"$f":"IFERROR(INDEX(Lookup!$B$2:$C$5,MATCH(RIGHT(TRIM(Table1[[#This Row],[Description]]),4),Lookup!$B$2:$B$5,0),2),\"\")","v":""}]
["2022-02-22","MailChimp 02/20 PURCHASE Atlanta GA DEBIT CARD *7411",-59,{"$f":"D21+Table1[[#This Row],[Amount]]","v":2437.5599999999995},{"$f":"IFERROR(INDEX(Lookup!$B$2:$C$5,MATCH(RIGHT(TRIM(Table1[[#This Row],[Description]]),4),Lookup!$B$2:$B$5,0),2),\"\")","v":"LRC"},"Peregrine",true,true,"220220 - Peregrine - Mailchimp Essentials MC15026518.pdf"]
["2022-02-22","MAILCHIMP *MISC 02/18 PURCHASE MAILCHIMP.COM GA DEBIT CARD *7411",-11.62,{"$f":"D22+Table1[[#This Row],[Amount]]","v":2425.9399999999996},{"$f":"IFERROR(INDEX(Lookup!$B$2:$C$5,MATCH(RIGHT(TRIM(Table1[[#This Row],[Description]]),4),Lookup!$B$2:$B$5,0),2),\"\")","v":"LRC"},"AGG",true,null,"220218 - AGG - Mailchimp Essentials MC15010226.pdf"]
["2022-03-01","Monthly Fee Business Adv Relationship",-29.95,{"$f":"D23+Table1[[#This Row],[Amount]]","v":2395.9899999999998},{"$f":"IFERROR(INDEX(Lookup!$B$2:$C$5,MATCH(RIGHT(TRIM(Table1[[#This Row],[Description]]),4),Lookup!$B$2:$B$5,0),2),\"\")","v":""},"AGG"]
["2022-03-15","Amazon.com*1N91P5 03/14 PURCHASE Amzn.com/bill WA DEBIT CARD *7411",-66.66,{"$f":"D24+Table1[[#This Row],[Amount]]","v":2329.33},{"$f":"IFERROR(INDEX(Lookup!$B$2:$C$5,MATCH(RIGHT(TRIM(Table1[[#This Row],[Description]]),4),Lookup!$B$2:$B$5,0),2),\"\")","v":"LRC"},"Peregrine",true,true,"Amazon.com - Order 111-7793024-7025007.pdf"]
["2022-03-15","STAMPS.COM 03/14 PURCHASE 855-608-2677 CA DEBIT CARD *7411",-30.12,{"$f":"D25+Table1[[#This Row],[Amount]]","v":2299.21},{"$f":"IFERROR(INDEX(Lookup!$B$2:$C$5,MATCH(RIGHT(TRIM(Table1[[#This Row],[Description]]),4),Lookup!$B$2:$B$5,0),2),\"\")","v":"LRC"},"Peregrine",true,true,"Stamps dot com st2385760.pdf"]
["2022-03-15","STAMPS.COM 03/14 PURCHASE 855-608-2677 CA DEBIT CARD *7411",-19.190000000000001,{"$f":"D26+Table1[[#This Row],[Amount]]","v":2280.02},{"$f":"IFERROR(INDEX(Lookup!$B$2:$C$5,MATCH(RIGHT(TRIM(Table1[[#This Row],[Description]]),4),Lookup!$B$2:$B$5,0),2),\"\")","v":"LRC"},"AGG",true,null,"Stamps dot com st2385037.pdf"]
["2022-03-15","TRANSFER AVIAGLOBAL GROUP, LL:ADS-B Global LLC Confirmation# 1737069000",-74.099999999999994,{"$f":"D27+Table1[[#This Row],[Amount]]","v":2205.92},{"$f":"IFERROR(INDEX(Lookup!$B$2:$C$5,MATCH(RIGHT(TRIM(Table1[[#This Row],[Description]]),4),Lookup!$B$2:$B$5,0),2),\"\")","v":""}]
["2022-03-16","MONSTERINSIGHTS W 03/16 PURCHASE PALM BEACH GA FL DEBIT CARD *7429",-199,{"$f":"D28+Table1[[#This Row],[Amount]]","v":2006.92},{"$f":"IFERROR(INDEX(Lookup!$B$2:$C$5,MATCH(RIGHT(TRIM(Table1[[#This Row],[Description]]),4),Lookup!$B$2:$B$5,0),2),\"\")","v":"FWC"},null,null,null,"220316 - Monsterinsights Plus.pdf"]
["2022-03-16","SEMPER PLUGINS AI 03/16 PURCHASE PALM BEACH GA FL DEBIT CARD *7429",-99,{"$f":"D29+Table1[[#This Row],[Amount]]","v":1907.92},{"$f":"IFERROR(INDEX(Lookup!$B$2:$C$5,MATCH(RIGHT(TRIM(Table1[[#This Row],[Description]]),4),Lookup!$B$2:$B$5,0),2),\"\")","v":"FWC"}]
["2022-03-16","External transfer fee - 3 Day - 03/15/2022 Confirmation: 379444042",-1,{"$f":"D30+Table1[[#This Row],[Amount]]","v":1906.92},{"$f":"IFERROR(INDEX(Lookup!$B$2:$C$5,MATCH(RIGHT(TRIM(Table1[[#This Row],[Description]]),4),Lookup!$B$2:$B$5,0),2),\"\")","v":""}]
["2022-03-17","PEREGRINE AVIONI DES:QUICKBOOKS ID:375020979 INDN:AVIAGLOBAL GROUP, LLC CO ID:1722616653 PPD",3850,{"$f":"D31+Table1[[#This Row],[Amount]]","v":5756.92},{"$f":"IFERROR(INDEX(Lookup!$B$2:$C$5,MATCH(RIGHT(TRIM(Table1[[#This Row],[Description]]),4),Lookup!$B$2:$B$5,0),2),\"\")","v":""}]
["2022-03-18","USPS STAMPS ENDIC 03/17 PURCHASE 888-434-0055 DC DEBIT CARD *7411",-100,{"$f":"D32+Table1[[#This Row],[Amount]]","v":5656.92},{"$f":"IFERROR(INDEX(Lookup!$B$2:$C$5,MATCH(RIGHT(TRIM(Table1[[#This Row],[Description]]),4),Lookup!$B$2:$B$5,0),2),\"\")","v":"LRC"},"Peregrine",true,true,"Stamps dot com Postage orders.pdf"]
["2022-03-18","USPS STAMPS ENDIC 03/17 PURCHASE 888-434-0055 DC DEBIT CARD *7411",-50,{"$f":"D33+Table1[[#This Row],[Amount]]","v":5606.92},{"$f":"IFERROR(INDEX(Lookup!$B$2:$C$5,MATCH(RIGHT(TRIM(Table1[[#This Row],[Description]]),4),Lookup!$B$2:$B$5,0),2),\"\")","v":"LRC"},"Peregrine",true,true,"Stamps dot com Postage orders.pdf"]
["2022-03-18","AMZN Mktp US*1N5B 03/17 PURCHASE Amzn.com/bill WA DEBIT CARD *7411",-29.63,{"$f":"D34+Table1[[#This Row],[Amount]]","v":5577.29},{"$f":"IFERROR(INDEX(Lookup!$B$2:$C$5,MATCH(RIGHT(TRIM(Table1[[#This Row],[Description]]),4),Lookup!$B$2:$B$5,0),2),\"\")","v":"LRC"},"Peregrine",true,true,"Amazon.com - Order 114-5434031-3824202.pdf"]
["2022-03-21","MailChimp 03/20 PURCHASE Atlanta GA DEBIT CARD *7411",-59,{"$f":"D35+Table1[[#This Row],[Amount]]","v":5518.29},{"$f":"IFERROR(INDEX(Lookup!$B$2:$C$5,MATCH(RIGHT(TRIM(Table1[[#This Row],[Description]]),4),Lookup!$B$2:$B$5,0),2),\"\")","v":"LRC"},"Peregrine",true,true,"220320 - Peregrine - Mailchimp Essentials MC15268026.pdf"]
["2022-03-21","MAILCHIMP *MISC 03/18 PURCHASE MAILCHIMP.COM GA DEBIT CARD *7411",-11.62,{"$f":"D36+Table1[[#This Row],[Amount]]","v":5506.67},{"$f":"IFERROR(INDEX(Lookup!$B$2:$C$5,MATCH(RIGHT(TRIM(Table1[[#This Row],[Description]]),4),Lookup!$B$2:$B$5,0),2),\"\")","v":"LRC"},"AGG",true,null,"220318 - AGG - Mailchimp Essentials MC15252178.pdf"]
["2022-03-23","TRANSFER AVIAGLOBAL GROUP, LL:ADS-B Global LLC Confirmation# 0107351744",-96.55,{"$f":"D37+Table1[[#This Row],[Amount]]","v":5410.12},{"$f":"IFERROR(INDEX(Lookup!$B$2:$C$5,MATCH(RIGHT(TRIM(Table1[[#This Row],[Description]]),4),Lookup!$B$2:$B$5,0),2),\"\")","v":""}]
["2022-03-24","USPS STAMPS ENDIC 03/23 PURCHASE 888-434-0055 DC DEBIT CARD *7411",-25,{"$f":"D38+Table1[[#This Row],[Amount]]","v":5385.12},{"$f":"IFERROR(INDEX(Lookup!$B$2:$C$5,MATCH(RIGHT(TRIM(Table1[[#This Row],[Description]]),4),Lookup!$B$2:$B$5,0),2),\"\")","v":"LRC"},"Peregrine",true,true,"Stamps dot com Postage orders.pdf"]
["2022-03-24","External transfer fee - 3 Day - 03/23/2022 Confirmation: 380466874",-1,{"$f":"D39+Table1[[#This Row],[Amount]]","v":5384.12},{"$f":"IFERROR(INDEX(Lookup!$B$2:$C$5,MATCH(RIGHT(TRIM(Table1[[#This Row],[Description]]),4),Lookup!$B$2:$B$5,0),2),\"\")","v":""}]
["2022-03-29","MICHAEL L STUCK C 03/28 PURCHASE SCOTTSDALE AZ DEBIT CARD *0975",-575,{"$f":"D40+Table1[[#This Row],[Amount]]","v":4809.12},{"$f":"IFERROR(INDEX(Lookup!$B$2:$C$5,MATCH(RIGHT(TRIM(Table1[[#This Row],[Description]]),4),Lookup!$B$2:$B$5,0),2),\"\")","v":"HEA"}]
["2022-03-31","NATIONAL BUS AVIA 03/31 PURCHASE WASHINGTON DC DEBIT CARD *7411",-750,{"$f":"D41+Table1[[#This Row],[Amount]]","v":4059.12},{"$f":"IFERROR(INDEX(Lookup!$B$2:$C$5,MATCH(RIGHT(TRIM(Table1[[#This Row],[Description]]),4),Lookup!$B$2:$B$5,0),2),\"\")","v":"LRC"},"AGG",true,null,"220331 - NBAA Dues 000419790.pdf"]
["2022-04-01","Monthly Fee Business Adv Relationship",-29.95,{"$f":"D42+Table1[[#This Row],[Amount]]","v":4029.17},{"$f":"IFERROR(INDEX(Lookup!$B$2:$C$5,MATCH(RIGHT(TRIM(Table1[[#This Row],[Description]]),4),Lookup!$B$2:$B$5,0),2),\"\")","v":""},"AGG"]
["2022-04-08","EVERMAP COMPANY L 04/05 PURCHASE CORVALLIS OR DEBIT CARD *0975",-149,{"$f":"D43+Table1[[#This Row],[Amount]]","v":3880.17},{"$f":"IFERROR(INDEX(Lookup!$B$2:$C$5,MATCH(RIGHT(TRIM(Table1[[#This Row],[Description]]),4),Lookup!$B$2:$B$5,0),2),\"\")","v":"HEA"}]
["2022-04-13","EVERMAP COMPANY L 04/05 PURCHASE CORVALLIS OR DEBIT CARD *7411",-149,{"$f":"D44+Table1[[#This Row],[Amount]]","v":3731.17},{"$f":"IFERROR(INDEX(Lookup!$B$2:$C$5,MATCH(RIGHT(TRIM(Table1[[#This Row],[Description]]),4),Lookup!$B$2:$B$5,0),2),\"\")","v":"LRC"},"AGG",true,null,"220405 - Evermap PDF Tool W-48699.pdf"]
["2022-04-14","STAMPS.COM 04/14 PURCHASE 855-608-2677 CA DEBIT CARD *7411",-17.989999999999998,{"$f":"D45+Table1[[#This Row],[Amount]]","v":3713.1800000000003},{"$f":"IFERROR(INDEX(Lookup!$B$2:$C$5,MATCH(RIGHT(TRIM(Table1[[#This Row],[Description]]),4),Lookup!$B$2:$B$5,0),2),\"\")","v":"LRC"},"AGG",true,null,"220416 - Stamps dot com.pdf"]
["2022-04-19","MAILCHIMP *MISC 04/18 PURCHASE MAILCHIMP.COM GA DEBIT CARD *7411",-11.62,{"$f":"D46+Table1[[#This Row],[Amount]]","v":3701.5600000000004},{"$f":"IFERROR(INDEX(Lookup!$B$2:$C$5,MATCH(RIGHT(TRIM(Table1[[#This Row],[Description]]),4),Lookup!$B$2:$B$5,0),2),\"\")","v":"LRC"},"AGG",true,null,"220418 - AGG - Mailchimp Essentials MC15490450.pdf"]
["2022-04-20","PEREGRINE AVIONI DES:QUICKBOOKS ID:375020979 INDN:AVIAGLOBAL GROUP, LLC CO ID:1722616653 PPD",3557.1,{"$f":"D47+Table1[[#This Row],[Amount]]","v":7258.66},{"$f":"IFERROR(INDEX(Lookup!$B$2:$C$5,MATCH(RIGHT(TRIM(Table1[[#This Row],[Description]]),4),Lookup!$B$2:$B$5,0),2),\"\")","v":""}]
["2022-04-20","MailChimp 04/20 PURCHASE Atlanta GA DEBIT CARD *7411",-59,{"$f":"D48+Table1[[#This Row],[Amount]]","v":7199.66},{"$f":"IFERROR(INDEX(Lookup!$B$2:$C$5,MATCH(RIGHT(TRIM(Table1[[#This Row],[Description]]),4),Lookup!$B$2:$B$5,0),2),\"\")","v":"LRC"},"Peregrine",true,null,"220420 - Peregrine - Mailchimp Essentials MC15506606.pdf"]
["2022-04-22","TRANSFER AVIAGLOBAL GROUP, LL:ADS-B Global LLC Confirmation# 1763915441",-2000,{"$f":"D49+Table1[[#This Row],[Amount]]","v":5199.66},{"$f":"IFERROR(INDEX(Lookup!$B$2:$C$5,MATCH(RIGHT(TRIM(Table1[[#This Row],[Description]]),4),Lookup!$B$2:$B$5,0),2),\"\")","v":""}]
["2022-04-22","TRANSFER AVIAGLOBAL GROUP, LL:Forrest Colliver Confirmation# 0663925416",-2000,{"$f":"D50+Table1[[#This Row],[Amount]]","v":3199.66},{"$f":"IFERROR(INDEX(Lookup!$B$2:$C$5,MATCH(RIGHT(TRIM(Table1[[#This Row],[Description]]),4),Lookup!$B$2:$B$5,0),2),\"\")","v":""}]
["2022-04-22","Online Banking Transfer Conf# iuvu5ty24; AERO BUSINESS DEVELOPEMENT LLC",-2000,{"$f":"D51+Table1[[#This Row],[Amount]]","v":1199.6599999999999},{"$f":"IFERROR(INDEX(Lookup!$B$2:$C$5,MATCH(RIGHT(TRIM(Table1[[#This Row],[Description]]),4),Lookup!$B$2:$B$5,0),2),\"\")","v":""}]
["2022-04-25","External transfer fee - 3 Day - 04/22/2022 Confirmation: 384618918",-1,{"$f":"D52+Table1[[#This Row],[Amount]]","v":1198.6599999999999},{"$f":"IFERROR(INDEX(Lookup!$B$2:$C$5,MATCH(RIGHT(TRIM(Table1[[#This Row],[Description]]),4),Lookup!$B$2:$B$5,0),2),\"\")","v":""}]
["2022-04-25","External transfer fee - 3 Day - 04/22/2022 Confirmation: 384619226",-1,{"$f":"D53+Table1[[#This Row],[Amount]]","v":1197.6599999999999},{"$f":"IFERROR(INDEX(Lookup!$B$2:$C$5,MATCH(RIGHT(TRIM(Table1[[#This Row],[Description]]),4),Lookup!$B$2:$B$5,0),2),\"\")","v":""}]
["2022-05-02","Monthly Fee Business Adv Relationship",-29.95,{"$f":"D54+Table1[[#This Row],[Amount]]","v":1167.7099999999998},{"$f":"IFERROR(INDEX(Lookup!$B$2:$C$5,MATCH(RIGHT(TRIM(Table1[[#This Row],[Description]]),4),Lookup!$B$2:$B$5,0),2),\"\")","v":""},"AGG"]
["2022-05-16","STAMPS.COM 05/14 PURCHASE 855-608-2677 CA DEBIT CARD *7411",-17.989999999999998,{"$f":"D55+Table1[[#This Row],[Amount]]","v":1149.7199999999998},{"$f":"IFERROR(INDEX(Lookup!$B$2:$C$5,MATCH(RIGHT(TRIM(Table1[[#This Row],[Description]]),4),Lookup!$B$2:$B$5,0),2),\"\")","v":"LRC"},"AGG",true,null,"220516 - Stamps dot com.pdf"]
["2022-05-19","MAILCHIMP *MISC 05/18 PURCHASE MAILCHIMP.COM GA DEBIT CARD *7411",-11.62,{"$f":"D56+Table1[[#This Row],[Amount]]","v":1138.0999999999999},{"$f":"IFERROR(INDEX(Lookup!$B$2:$C$5,MATCH(RIGHT(TRIM(Table1[[#This Row],[Description]]),4),Lookup!$B$2:$B$5,0),2),\"\")","v":"LRC"},"AGG",true,null,"220518 - AGG - Mailchimp Essentials MC15724938.pdf"]
["2022-05-20","MailChimp 05/20 PURCHASE Atlanta GA DEBIT CARD *7411",-59,{"$f":"D57+Table1[[#This Row],[Amount]]","v":1079.0999999999999},{"$f":"IFERROR(INDEX(Lookup!$B$2:$C$5,MATCH(RIGHT(TRIM(Table1[[#This Row],[Description]]),4),Lookup!$B$2:$B$5,0),2),\"\")","v":"LRC"},"Peregrine",true,null,"220520 - Peregrine - Mailchimp Essentials MC15741014.pdf"]
["2022-06-01","Monthly Fee Business Adv Relationship",-29.95,{"$f":"D58+Table1[[#This Row],[Amount]]","v":1049.1499999999999},{"$f":"IFERROR(INDEX(Lookup!$B$2:$C$5,MATCH(RIGHT(TRIM(Table1[[#This Row],[Description]]),4),Lookup!$B$2:$B$5,0),2),\"\")","v":""},"AGG"]
["2022-06-06","DMARCIAN* DMARCIA 06/04 PURCHASE BREVARD NC DEBIT CARD *7429",-239.88,{"$f":"D59+Table1[[#This Row],[Amount]]","v":809.26999999999987},{"$f":"IFERROR(INDEX(Lookup!$B$2:$C$5,MATCH(RIGHT(TRIM(Table1[[#This Row],[Description]]),4),Lookup!$B$2:$B$5,0),2),\"\")","v":"FWC"},null,null,null,"220604 - Demarcian 50733.pdf"]
["2022-06-08","DREAMSTIME.COM 06/07 PURCHASE BRENTWOOD TN DEBIT CARD *7411",-16.989999999999998,{"$f":"D60+Table1[[#This Row],[Amount]]","v":792.27999999999986},{"$f":"IFERROR(INDEX(Lookup!$B$2:$C$5,MATCH(RIGHT(TRIM(Table1[[#This Row],[Description]]),4),Lookup!$B$2:$B$5,0),2),\"\")","v":"LRC"},"Peregrine",true,null,"220607 - Dreamtime LLC 23829472.pdf"]
["2022-06-08","DREAMSTIME.COM 06/07 PURCHASE BRENTWOOD TN DEBIT CARD *7411",-1,{"$f":"D61+Table1[[#This Row],[Amount]]","v":791.27999999999986},{"$f":"IFERROR(INDEX(Lookup!$B$2:$C$5,MATCH(RIGHT(TRIM(Table1[[#This Row],[Description]]),4),Lookup!$B$2:$B$5,0),2),\"\")","v":"LRC"},"Peregrine",true,null,"220607 - Dreamtime LLC 23829472.pdf"]
["2022-06-14","STAMPS.COM 06/14 PURCHASE 855-608-2677 CA DEBIT CARD *7411",-17.989999999999998,{"$f":"D62+Table1[[#This Row],[Amount]]","v":773.28999999999985},{"$f":"IFERROR(INDEX(Lookup!$B$2:$C$5,MATCH(RIGHT(TRIM(Table1[[#This Row],[Description]]),4),Lookup!$B$2:$B$5,0),2),\"\")","v":"LRC"},"AGG",true,null,"220616 - Stamps dot com.pdf"]
["2022-06-21","MailChimp 06/20 PURCHASE Atlanta GA DEBIT CARD *7411",-59,{"$f":"D63+Table1[[#This Row],[Amount]]","v":714.28999999999985},{"$f":"IFERROR(INDEX(Lookup!$B$2:$C$5,MATCH(RIGHT(TRIM(Table1[[#This Row],[Description]]),4),Lookup!$B$2:$B$5,0),2),\"\")","v":"LRC"},"Peregrine",true,null,"220620 - Peregrine - Mailchimp Essentials MC15971334.pdf"]
["2022-06-21","MAILCHIMP *MISC 06/18 PURCHASE MAILCHIMP.COM GA DEBIT CARD *7411",-11.62,{"$f":"D64+Table1[[#This Row],[Amount]]","v":702.66999999999985},{"$f":"IFERROR(INDEX(Lookup!$B$2:$C$5,MATCH(RIGHT(TRIM(Table1[[#This Row],[Description]]),4),Lookup!$B$2:$B$5,0),2),\"\")","v":"LRC"},"AGG",true,null,"220618 - AGG - Mailchimp Essentials MC15956138.pdf"]
["2022-06-21","ELEMENTOR 06/20 PURCHASE WILMINGTON DE DEBIT CARD *7429",-49,{"$f":"D65+Table1[[#This Row],[Amount]]","v":653.66999999999985},{"$f":"IFERROR(INDEX(Lookup!$B$2:$C$5,MATCH(RIGHT(TRIM(Table1[[#This Row],[Description]]),4),Lookup!$B$2:$B$5,0),2),\"\")","v":"FWC"}]
["2022-06-21","REALLY-SIMPLE-SSL 06/20 PURCHASE GRONINGEN DEBIT CARD *7429",-23.2,{"$f":"D66+Table1[[#This Row],[Amount]]","v":630.4699999999998},{"$f":"IFERROR(INDEX(Lookup!$B$2:$C$5,MATCH(RIGHT(TRIM(Table1[[#This Row],[Description]]),4),Lookup!$B$2:$B$5,0),2),\"\")","v":"FWC"}]
["2022-06-21","COMPLIANZ-GDPR-PR 06/20 PURCHASE GRONINGEN DEBIT CARD *7429",-45,{"$f":"D67+Table1[[#This Row],[Amount]]","v":585.4699999999998},{"$f":"IFERROR(INDEX(Lookup!$B$2:$C$5,MATCH(RIGHT(TRIM(Table1[[#This Row],[Description]]),4),Lookup!$B$2:$B$5,0),2),\"\")","v":"FWC"}]
["2022-06-21","INTERNATIONAL TRANSACTION FEE 06/20 COMPLIANZ-GDPR-PR GRONINGEN DEBIT CARD *7429",-1.35,{"$f":"D68+Table1[[#This Row],[Amount]]","v":584.11999999999978},{"$f":"IFERROR(INDEX(Lookup!$B$2:$C$5,MATCH(RIGHT(TRIM(Table1[[#This Row],[Description]]),4),Lookup!$B$2:$B$5,0),2),\"\")","v":"FWC"},null,null,null,{"$f":"TEXT(Table1[[#This Row],[Date]],\"YYMMDD\")&\" - Intl Transaction Fee - \"&LEFT(RIGHT(Table1[[#This Row],[Description]],LEN(Table1[[#This Row],[Description]])-LEN(\"international transaction fee xx/xx \")),SEARCH(\"DEBIT\",RIGHT(Table1[[#This Row],[Description]],LEN(Table1[[#This Row],[Description]])-LEN(\"international transaction fee xx/xx xx\"))))&\".pdf\"","v":"220621 - Intl Transaction Fee - COMPLIANZ-GDPR-PR GRONINGEN.pdf"}]
["2022-06-21","INTERNATIONAL TRANSACTION FEE 06/20 REALLY-SIMPLE-SSL GRONINGEN DEBIT CARD *7429",-0.7,{"$f":"D69+Table1[[#This Row],[Amount]]","v":583.41999999999973},{"$f":"IFERROR(INDEX(Lookup!$B$2:$C$5,MATCH(RIGHT(TRIM(Table1[[#This Row],[Description]]),4),Lookup!$B$2:$B$5,0),2),\"\")","v":"FWC"},null,null,null,{"$f":"TEXT(Table1[[#This Row],[Date]],\"YYMMDD\")&\" - Intl Transaction Fee - \"&LEFT(RIGHT(Table1[[#This Row],[Description]],LEN(Table1[[#This Row],[Description]])-LEN(\"international transaction fee xx/xx \")),SEARCH(\"DEBIT\",RIGHT(Table1[[#This Row],[Description]],LEN(Table1[[#This Row],[Description]])-LEN(\"international transaction fee xx/xx xx\"))))&\".pdf\"","v":"220621 - Intl Transaction Fee - REALLY-SIMPLE-SSL GRONINGEN.pdf"}]
["2022-07-01","Monthly Fee Business Adv Relationship",-29.95,{"$f":"D70+Table1[[#This Row],[Amount]]","v":553.46999999999969},{"$f":"IFERROR(INDEX(Lookup!$B$2:$C$5,MATCH(RIGHT(TRIM(Table1[[#This Row],[Description]]),4),Lookup!$B$2:$B$5,0),2),\"\")","v":""}]
["2022-07-08","PEREGRINE AVIONI DES:QUICKBOOKS ID:375020979 INDN:AVIAGLOBAL GROUP, LLC CO ID:1722616653 PPD",3000,{"$f":"D71+Table1[[#This Row],[Amount]]","v":3553.47},{"$f":"IFERROR(INDEX(Lookup!$B$2:$C$5,MATCH(RIGHT(TRIM(Table1[[#This Row],[Description]]),4),Lookup!$B$2:$B$5,0),2),\"\")","v":""}]
["2022-07-14","STAMPS.COM 07/14 PURCHASE 855-608-2677 CA DEBIT CARD *7411",-17.989999999999998,{"$f":"D72+Table1[[#This Row],[Amount]]","v":3535.48},{"$f":"IFERROR(INDEX(Lookup!$B$2:$C$5,MATCH(RIGHT(TRIM(Table1[[#This Row],[Description]]),4),Lookup!$B$2:$B$5,0),2),\"\")","v":"LRC"},"AGG",null,null,"220714 - Stamps dot com.pdf"]
["2022-07-19","MAILCHIMP *MISC 07/18 PURCHASE MAILCHIMP.COM GA DEBIT CARD *7411",-11.62,{"$f":"D73+Table1[[#This Row],[Amount]]","v":3523.86},{"$f":"IFERROR(INDEX(Lookup!$B$2:$C$5,MATCH(RIGHT(TRIM(Table1[[#This Row],[Description]]),4),Lookup!$B$2:$B$5,0),2),\"\")","v":"LRC"},"AGG",null,null,"220718 - AGG - Mailchimp Essential MC16182470.pdf"]
["2022-07-20","MailChimp 07/20 PURCHASE Atlanta GA DEBIT CARD *7411",-59,{"$f":"D74+Table1[[#This Row],[Amount]]","v":3464.86},{"$f":"IFERROR(INDEX(Lookup!$B$2:$C$5,MATCH(RIGHT(TRIM(Table1[[#This Row],[Description]]),4),Lookup!$B$2:$B$5,0),2),\"\")","v":"LRC"},"Peregrine"]
["2022-08-01","SAE INTERNATIONAL 07/30 PURCHASE 7247764841 PA DEBIT CARD *7411",-120,{"$f":"D75+Table1[[#This Row],[Amount]]","v":3344.86},{"$f":"IFERROR(INDEX(Lookup!$B$2:$C$5,MATCH(RIGHT(TRIM(Table1[[#This Row],[Description]]),4),Lookup!$B$2:$B$5,0),2),\"\")","v":"LRC"},"AGG"]
["2022-08-01","Monthly Fee Business Adv Relationship",-29.95,{"$f":"D76+Table1[[#This Row],[Amount]]","v":3314.9100000000003},{"$f":"IFERROR(INDEX(Lookup!$B$2:$C$5,MATCH(RIGHT(TRIM(Table1[[#This Row],[Description]]),4),Lookup!$B$2:$B$5,0),2),\"\")","v":""},"AGG"]
["2022-08-08","PEREGRINE AVIONI DES:QUICKBOOKS ID:375020979 INDN:AVIAGLOBAL GROUP, LLC CO ID:1722616653 PPD",3000,{"$f":"D77+Table1[[#This Row],[Amount]]","v":6314.91},{"$f":"IFERROR(INDEX(Lookup!$B$2:$C$5,MATCH(RIGHT(TRIM(Table1[[#This Row],[Description]]),4),Lookup!$B$2:$B$5,0),2),\"\")","v":""}]
["2022-08-15","STAMPS.COM 08/14 PURCHASE 855-608-2677 CA DEBIT CARD *7411",-17.989999999999998,{"$f":"D78+Table1[[#This Row],[Amount]]","v":6296.92},{"$f":"IFERROR(INDEX(Lookup!$B$2:$C$5,MATCH(RIGHT(TRIM(Table1[[#This Row],[Description]]),4),Lookup!$B$2:$B$5,0),2),\"\")","v":"LRC"},"AGG"]
["2022-08-19","MAILCHIMP *MISC 08/18 PURCHASE MAILCHIMP.COM GA DEBIT CARD *7411",-11.62,{"$f":"D79+Table1[[#This Row],[Amount]]","v":6285.3},{"$f":"IFERROR(INDEX(Lookup!$B$2:$C$5,MATCH(RIGHT(TRIM(Table1[[#This Row],[Description]]),4),Lookup!$B$2:$B$5,0),2),\"\")","v":"LRC"},"AGG"]
["2022-08-22","MailChimp 08/20 PURCHASE Atlanta GA DEBIT CARD *7411",-59,{"$f":"D80+Table1[[#This Row],[Amount]]","v":6226.3},{"$f":"IFERROR(INDEX(Lookup!$B$2:$C$5,MATCH(RIGHT(TRIM(Table1[[#This Row],[Description]]),4),Lookup!$B$2:$B$5,0),2),\"\")","v":"LRC"},"Peregrine"]

{"sheet":"Lookup","index":1,"n_rows":5,"n_cols":3,"rows_kept":5,"cut":false,"hidden":false,"merged":[]}
[]
[null,"Debit card","Who"]
[null,"0975","HEA"]
[null,"7411","LRC"]
[null,"7429","FWC"]

{"sheet":"Sheet3","index":2,"n_rows":8,"n_cols":10,"rows_kept":8,"cut":false,"hidden":false,"merged":[]}
["15‐Mar‐22 AGG MasterCard G150 campaign Stamps.com Mailing material 30.12$ US 1.00 30.12$ ",null,null,null,null,null,null,null,null,30.12]
["15‐Mar‐22 AGG MasterCard G150 campaign Amazon Brochure stock, envelopes 66.66$ US 1.00 66.66$ ",null,null,null,null,null,null,null,null,66.66]
["17‐Mar‐22 ADS‐B Global G150 campaign ADS‐B Glbl Brochure printing two‐sided color laser 180 US 0.50 90.00$ "]
["18‐Mar‐22 AGG MasterCard G150 campaign Stamps.com USPS STAMPS 50.00$ US 1.00 50.00$ ",null,null,null,null,null,null,null,null,50]
["18‐Mar‐22 AGG MasterCard G150 campaign Stamps.com USPS STAMPS 100.00$ US 1.00 100.00$ ",null,null,null,null,null,null,null,null,100]
["18‐Mar‐22 AGG MasterCard G150 campaign Amazon Brochure stock 29.63$ US 1.00 29.63$ ",null,null,null,null,null,null,null,null,29.63]
["20‐Mar‐22 AGG MasterCard Dues/Subscriptions Mailchimp Mailchimp Essentials 59.00$ US 1.00 59.00$ ",null,null,null,null,null,null,null,null,59]
["23‐Mar‐22 AGG MasterCard G150 campaign Stamps.com USPS STAMPS 25.00$ US 1.00 25.00",null,null,null,null,null,null,null,null,25]

{"sheet":"Sheet2","index":3,"n_rows":48,"n_cols":8,"rows_kept":48,"cut":false,"hidden":false,"merged":[]}
["Column1","Column2","Column3","Column4","Column5","Column6","Column7","Column8"]
[11.62,null,null,null,null,null,null," - AGG - Mailchimp Essentials "]
[]
["MC15956138 ",null,null,null,null,{"$f":"F8&$H$2&TRIM(A4)&\".pdf\"","v":"220618 - AGG - Mailchimp Essentials MC15956138.pdf"}]
[]
["Essentials plan (500 contacts)"]
[]
["Sat, Jun 18, 2022 3:18 am",null,null,null,{"$f":"DATEVALUE(MID(A8,6,12))","v":"2022-06-18"},{"$f":"TEXT(E8,\"YYMMDD\")","v":"220618"}]
[]
[11.62]
[]
["MC15724938 ",null,null,null,null,{"$f":"F16&$H$2&TRIM(A12)&\".pdf\"","v":"220518 - AGG - Mailchimp Essentials MC15724938.pdf"}]
[]
["Essentials plan (500 contacts)"]
[]
["Wed, May 18, 2022 3:35 am",null,null,null,{"$f":"DATEVALUE(MID(A16,6,12))","v":"2022-05-18"},{"$f":"TEXT(E16,\"YYMMDD\")","v":"220518"}]
[]
[11.62]
[]
["MC15490450 ",null,null,null,null,{"$f":"F24&$H$2&TRIM(A20)&\".pdf\"","v":"220418 - AGG - Mailchimp Essentials MC15490450.pdf"}]
[]
["Essentials plan (500 contacts)"]
[]
["Mon, Apr 18, 2022 3:35 am",null,null,null,{"$f":"DATEVALUE(MID(A24,6,12))","v":"2022-04-18"},{"$f":"TEXT(E24,\"YYMMDD\")","v":"220418"}]
[]
[11.62]
[]
["MC15252178 ",null,null,null,null,{"$f":"F32&$H$2&TRIM(A28)&\".pdf\"","v":"220318 - AGG - Mailchimp Essentials MC15252178.pdf"}]
[]
["Essentials plan (500 contacts)"]
[]
["Fri, Mar 18, 2022 3:34 am",null,null,null,{"$f":"DATEVALUE(MID(A32,6,12))","v":"2022-03-18"},{"$f":"TEXT(E32,\"YYMMDD\")","v":"220318"}]
[]
[11.62]
[]
["MC15010226 ",null,null,null,null,{"$f":"F40&$H$2&TRIM(A36)&\".pdf\"","v":"220218 - AGG - Mailchimp Essentials MC15010226.pdf"}]
[]
["Essentials plan (500 contacts)"]
[]
["Fri, Feb 18, 2022 2:35 am",null,null,null,{"$f":"DATEVALUE(MID(A40,6,12))","v":"2022-02-18"},{"$f":"TEXT(E40,\"YYMMDD\")","v":"220218"}]
[]
[9.49]
[]
["MC14760854 "]
[]
["Essentials plan (500 contacts)"]
[]
["Tue, Jan 18, 2022 3:11 am"]

{"sheet":"Sheet1","index":4,"n_rows":26,"n_cols":9,"rows_kept":26,"cut":false,"hidden":false,"merged":[]}
["W:\\$ AviaGlobalGroup\\AGG Finance\\AGG Credit Card Receipts\\*AGG*"]
[null,null,null,null,null,null,null,null,{"$f":"IFERROR(INDEX(ListOfFiles,ROW()-2),\"\")","v":""}]
[null,null,null,null,null,null,null,null,{"$f":"IFERROR(INDEX(ListOfFiles,ROW()-2),\"\")","v":""}]
[{"$f":"IFERROR(INDEX(FileNameList,ROW()-2),\"\")","v":""},null,null,null,null,null,null,null,{"$f":"IFERROR(INDEX(ListOfFiles,ROW()-2),\"\")","v":""}]
[null,null,null,null,null,null,null,null,{"$f":"IFERROR(INDEX(ListOfFiles,ROW()-2),\"\")","v":""}]
[null,null,null,null,null,null,null,null,{"$f":"IFERROR(INDEX(ListOfFiles,ROW()-2),\"\")","v":""}]
[null,null,null,null,null,null,null,null,{"$f":"IFERROR(INDEX(ListOfFiles,ROW()-2),\"\")","v":""}]
[null,null,null,null,null,null,null,null,{"$f":"IFERROR(INDEX(ListOfFiles,ROW()-2),\"\")","v":""}]
[null,null,null,null,null,null,null,null,{"$f":"IFERROR(INDEX(ListOfFiles,ROW()-2),\"\")","v":""}]
[null,null,null,null,null,null,null,null,{"$f":"IFERROR(INDEX(ListOfFiles,ROW()-2),\"\")","v":""}]
[null,null,null,null,null,null,null,null,{"$f":"IFERROR(INDEX(ListOfFiles,ROW()-2),\"\")","v":""}]
[null,null,null,null,null,null,null,null,{"$f":"IFERROR(INDEX(ListOfFiles,ROW()-2),\"\")","v":""}]
[null,null,null,null,null,null,null,null,{"$f":"IFERROR(INDEX(ListOfFiles,ROW()-2),\"\")","v":""}]
[null,null,null,null,null,null,null,null,{"$f":"IFERROR(INDEX(ListOfFiles,ROW()-2),\"\")","v":""}]
[null,null,null,null,null,null,null,null,{"$f":"IFERROR(INDEX(ListOfFiles,ROW()-2),\"\")","v":""}]
[null,null,null,null,null,null,null,null,{"$f":"IFERROR(INDEX(ListOfFiles,ROW()-2),\"\")","v":""}]
[null,null,null,null,null,null,null,null,{"$f":"IFERROR(INDEX(ListOfFiles,ROW()-2),\"\")","v":""}]
[null,null,null,null,null,null,null,null,{"$f":"IFERROR(INDEX(ListOfFiles,ROW()-2),\"\")","v":""}]
[null,null,null,null,null,null,null,null,{"$f":"IFERROR(INDEX(ListOfFiles,ROW()-2),\"\")","v":""}]
[null,null,null,null,null,null,null,null,{"$f":"IFERROR(INDEX(ListOfFiles,ROW()-2),\"\")","v":""}]
[null,null,null,null,null,null,null,null,{"$f":"IFERROR(INDEX(ListOfFiles,ROW()-2),\"\")","v":""}]
[null,null,null,null,null,null,null,null,{"$f":"IFERROR(INDEX(ListOfFiles,ROW()-2),\"\")","v":""}]
[null,null,null,null,null,null,null,null,{"$f":"IFERROR(INDEX(ListOfFiles,ROW()-2),\"\")","v":""}]
[null,null,null,null,null,null,null,null,{"$f":"IFERROR(INDEX(ListOfFiles,ROW()-2),\"\")","v":""}]
[null,null,null,null,null,null,null,null,{"$f":"IFERROR(INDEX(ListOfFiles,ROW()-2),\"\")","v":""}]
[null,null,null,null,null,null,null,null,{"$f":"IFERROR(INDEX(ListOfFiles,ROW()-2),\"\")","v":""}]